[Event "58th Akiba Rubinstein B 2022"]
[Site "Polanica-Zdroj"]
[Date "2022.08.13"]
[Round "1.7"]
[White "Terkiewicz, Bruno"]
[Black "Penza, Denis"]
[Result "1-0"]
[ECO "A06"]
[WhiteElo "1473"]
[BlackElo "1836"]
[Annotator "NA RC COMBH"]
[PlyCount "97"]
[EventDate "2022.08.13"]
[EventCountry "POL"]
[SourceTitle "playchess.com"]
[Source "ChessBase"]
[SourceQuality "1"]
[TimeControl "40/5400+30:1800+30"]

1. Nf3 {[%emt 0:00:04]} d5 {[%emt 0:00:39]} 2. g3 {[%emt 0:00:03]} Nf6 {[%emt 0:00:06]} 3. Bg2 {[%emt 0:00:04]} Bf5 {[%emt 0:00:19]} 4. c4 {[%emt 0:02:01]} c6 {[%emt 0:00:27]} 5. O-O {[%emt 0:00:08]} e6 {[%emt 0:00:13]} 6. d3 {[%emt 0:00:47]} h6 {[%emt 0:00:23]} 7. Nbd2 {[%emt 0:08:30]} Be7 {[%emt 0:00:22]} 8. Re1 {[%emt 0:01:57]} O-O {[%emt 0:01:26]} 9. Qb3 {[%emt 0:02:53]} Qb6 {[%emt 0:02:24]} 10. e4 {[%emt 0:11:04]} Bh7 {[%emt 0:04:16]} 11. e5 {[%emt 0:09:01]} Nfd7 {[%emt 0:00:57]} 12. d4 {[%emt 0:01:10]} Na6 {[%emt 0:08:03]} 13. Nf1 {[%emt 0:04:52]} dxc4 {[%emt 0:05:17]} 14. Qxc4 {[%emt 0:00:15]} Nb4 {[%emt 0:02:20]} 15. Ne3 {[%emt 0:01:40]} Nd3 {[%emt 0:05:13]} 16. Re2 {[%emt 0:01:44]} Nxc1 {[%emt 0:01:48]} 17. Rxc1 {[%emt 0:00:19]} Qb4 {[%emt 0:00:40]} 18. Qxb4 {[%emt 0:04:09]} Bxb4 {[%emt 0:00:07]} 19. a3 {[%emt 0:00:32]} Bd3 {[%emt 0:01:14]} 20. Bf1 {[%emt 0:01:25]} Bxe2 {[%emt 0:01:14]} 21. Bxe2 {[%emt 0:00:05]} Be7 {[%emt 0:00:21]} 22. Nc4 {[%emt 0:02:28]} Nb6 {[%emt 0:02:33]} 23. Na5 {[%emt 0:01:37]} Rab8 {[%emt 0:00:40]} 24. b4 {[%emt 0:02:26]} Nd5 {[%emt 0:03:08]} 25. Nd2 {[%emt 0:01:23]} Rfd8 {[%emt 0:01:14]} 26. Ndb3 {[%emt 0:02:30]} Rd7 {[%emt 0:01:29]} 27. Kg2 {[%emt 0:02:52]} Kf8 {[%emt 0:08:09]} 28. Kf3 {[%emt 0:05:09]} Rc7 29. Ke4 f5+ {[%emt 0:07:53]} 30. Kd3 {[%emt 0:02:31]} g5 {[%emt 0:01:08]} 31. h3 {[%emt 0:01:51]} Kg7 {[%emt 0:01:38]} 32. Bh5 {[%emt 0:02:36]} Rbc8 {[%emt 0:02:18]} 33. Nc5 {[%emt 0:01:50]} Bxc5 {[%emt 0:00:32]} 34. dxc5 {[%emt 0:00:59]} Ne7 {[%emt 0:05:55]} 35. Nc4 {[%emt 0:00:48]} Rd8+ {[%emt 0:01:01]} 36. Nd6 {[%emt 0:00:52]} Ng6 {[%emt 0:00:56]} 37. Re1 {[%emt 0:01:05]} Rcd7 {[%emt 0:03:25]} 38. Kc4 {[%emt 0:07:18]} Rf8 {[%emt 0:05:52]} 39. Bd1 {[%emt 0:01:58]} f4 {[%emt 0:02:58]} 40. g4 {[%emt 0:00:00]} f3 {[%emt 0:00:00]} 41. Re3 {[%emt 0:06:35]} Nf4 {[%emt 0:11:55]} 42. Rxf3 {[%emt 0:03:13]} Ng6 {[%emt 0:00:43]} 43. Kd4 {[%emt 0:05:42]} Rf4+ {[%emt 0:10:33]} 44. Rxf4 {[%emt 0:01:06]} Nxf4 {[%emt 0:00:15]} 45. Bb3 {[%emt 0:08:21]} Kf8 {[%emt 0:05:25]} 46. Ke4 {[%emt 0:06:17]} Ke7 {[%emt 0:08:10]} 47. h4 {[%emt 0:14:58]} Kd8 {[%emt 0:03:07]} 48. h5 {[%emt 0:01:46]} a6 {[%emt 0:02:02]} 49. Bc4 {[%emt 0:01:13]} 1-0

[Event "58th Akiba Rubinstein B 2022"]
[Site "Polanica-Zdroj"]
[Date "2022.08.13"]
[Round "1.8"]
[White "Rogala, Milosz"]
[Black "Chybalski, Piotr"]
[Result "1-0"]
[ECO "B10"]
[WhiteElo "1837"]
[BlackElo "1665"]
[Annotator "NA RC COMBH"]
[PlyCount "57"]
[EventDate "2022.08.13"]
[EventCountry "POL"]
[SourceTitle "playchess.com"]
[Source "ChessBase"]
[SourceQuality "1"]
[TimeControl "40/5400+30:1800+30"]

1. e4 {[%emt 0:00:09]} c6 {[%emt 0:00:02]} 2. Nf3 {[%emt 0:00:27]} d5 {[%emt 0:00:02]} 3. d3 {[%emt 0:00:17]} Bg4 {[%emt 0:02:08]} 4. Be2 {[%emt 0:00:23]} e6 {[%emt 0:00:41]} 5. Nfd2 {[%emt 0:02:38]} Bxe2 {[%emt 0:00:33]} 6. Qxe2 {[%emt 0:00:02]} Nf6 {[%emt 0:02:31]} 7. O-O {[%emt 0:02:29]} h5 {[%emt 0:08:06]} 8. c4 {[%emt 0:06:33]} Qc7 {[%emt 0:11:02]} 9. cxd5 {[%emt 0:12:46]} cxd5 {[%emt 0:01:44]} 10. e5 {[%emt 0:00:33]} Ng4 {[%emt 0:09:17]} 11. d4 {[%emt 0:01:19]} Nc6 {[%emt 0:01:58]} 12. Nb3 {[%emt 0:01:24]} a5 {[%emt 0:14:54]} 13. a4 {[%emt 0:04:39]} Nh6 {[%emt 0:16:57]} 14. Bxh6 {[%emt 0:06:07]} Rxh6 {[%emt 0:00:13]} 15. Nc3 {[%emt 0:00:09]} Qb6 {[%emt 0:04:14]} 16. Qb5 {[%emt 0:03:37]} Ra6 {[%emt 0:00:47]} 17. Rfc1 {[%emt 0:02:18]} Qa7 {[%emt 0:02:09]} 18. Qd3 {[%emt 0:04:37]} Nb4 {[%emt 0:01:42]} 19. Qd2 {[%emt 0:01:44]} Rc6 {[%emt 0:02:18]} 20. Qe2 {[%emt 0:05:36]} Kd8 {[%emt 0:06:50]} 21. Qf3 {[%emt 0:06:37]} f6 {[%emt 0:04:15]} 22. Nb5 {[%emt 0:01:24]} Qb6 {[%emt 0:01:16]} 23. exf6 {[%emt 0:01:20]} Rxf6 {[%emt 0:00:16]} 24. Qg3 {[%emt 0:03:42]} Kd7 {[%emt 0:03:53]} 25. Qb8 {[%emt 0:11:28]} Nd3 {[%emt 0:00:20]} 26. Rxc6 {[%emt 0:00:55]} Qxc6 {[%emt 0:00:07]} 27. Nxa5 {[%emt 0:00:35]} Qc2 {[%emt 0:02:28]} 28. Qxb7+ {[%emt 0:00:43]} Ke8 {[%emt 0:01:43]} 29. Qc6+ {[%emt 0:01:15]} 1-0

[Event "58th Akiba Rubinstein B 2022"]
[Site "Polanica-Zdroj"]
[Date "2022.08.13"]
[Round "1.9"]
[White "Krzyzosiak, Marta"]
[Black "Bednarczyk, Mateusz"]
[Result "1/2-1/2"]
[ECO "B20"]
[WhiteElo "1666"]
[BlackElo "1925"]
[Annotator "TA"]
[PlyCount "64"]
[EventDate "2022.08.13"]
[EventCountry "POL"]
[SourceTitle "playchess.com"]
[Source "ChessBase"]
[SourceQuality "1"]
[TimeControl "40/5400+30:1800+30"]

{[%evp 9,64,0,3,0,55,42,33,35,52,39,62,46,93,101,104,78,77,78,80,70,114,24,36,0,0,0,0,0,33,-14,19,-18,16,13,9,14,37,0,0,0,12,8,5,0,16,9,31,36,39,21,37,47,65,28,30,37,128]} 1. e4 {[%emt 0:00:04]} c5 {[%emt 0:00:08]} 2. Ne2 {[%emt 0:00:09]} Nc6 {[%emt 0:00:12]} 3. g3 {[%emt 0:00:09]} g6 {[%emt 0:00:29]} 4. Bg2 {[%emt 0:00:19]} Bg7 {[%emt 0:00:06]} 5. c3 {[%emt 0:00:14]} e5 {[%emt 0:09:57]} 6. O-O {[%emt 0:02:52][%cal Ob2b4] B20: Sicilian: Unusual White 2nd moves.} Nf6 {[%emt 0:00:50]} (6... Nge7 $11) 7. d4 $14 {[%emt 0:05:48]} cxd4 {[%emt 0:10:38]} 8. cxd4 {[%emt 0:00:35]} exd4 {[%emt 0:01:40]} 9. Nxd4 {[%emt 0:00:24][%cal Oe4e5] Strongly threatening e5!} O-O {[%emt 0:00:08] [#]} 10. Nb5 $146 {[%emt 0:12:26]} ({Predecessor:} 10. Be3 d5 11. exd5 Nxd5 12. Nxc6 bxc6 13. Bd4 Be6 14. Bxg7 Kxg7 15. Nc3 Nxc3 16. bxc3 Bd5 {½-½ (16) Bartel,M-Szablowski,P (2066) Zamosc 1999}) 10... a6 {[%emt 0:16:33]} (10... d6 $14) 11. Nd6 $16 {[%emt 0:05:23]} Ne8 {[%emt 0:01:45]} 12. Nxc8 {[%emt 0:14:48] White is more active.} Rxc8 {[%emt 0:00:24]} 13. Nc3 {[%emt 0:00:38]} Nc7 {[%emt 0:08:36]} 14. Be3 {[%emt 0:06:12]} Ne6 {[%emt 0:06:12]} 15. Qd2 {[%emt 0:04:02]} ({Better is} 15. Nd5 $16) 15... Ne5 $11 {[%emt 0:04:49]} 16. Rac1 {[%emt 0:21:57]} Nc4 {[%emt 0:02:26] Pair of Knights!} 17. Qe2 {[%emt 0:03:00] Black must now prevent Nd5.} Nxe3 {[%emt 0:04:26]} 18. Qxe3 {[%emt 0:00:15]} b5 {[%emt 0:02:21]} 19. b3 {[%emt 0:04:50]} (19. Nd5 $14 Rxc1 20. Qxc1) 19... Bd4 {[%emt 0:05:33]} 20. Qd3 {[%emt 0:03:50]} Qg5 {[%emt 0:10:07]} 21. h4 {[%emt 0:02:17]} Qe5 {[%emt 0:04:32][%cal Rd4c3]} 22. Ne2 {[%emt 0:04:34]} Rc6 {[%emt 0:06:37]} 23. Rxc6 {[%emt 0:02:14]} (23. Nxd4 {keeps more tension.} Qxd4 24. Qxd4 Nxd4 25. Rcd1) 23... dxc6 {[%emt 0:00:08]} 24. Nxd4 {[%emt 0:00:16]} Qxd4 {[%emt 0:01:18]} 25. Qxd4 {[%emt 0:02:14]} Nxd4 $14 {[%emt 0:00:06][%cal Be6d4,Bd4e2,Be2c3][%mdl 4128] Endgame KRB-KRN} 26. Rd1 {[%emt 0:00:23]} c5 {[%emt 0:01:03]} 27. f4 {[%emt 0:01:00]} Ne2+ {[%emt 0:01:15]} 28. Kf2 {[%emt 0:00:21]} Nc3 {[%emt 0:00:05][%csl LRa2,LRd1]} 29. Rd2 {[%emt 0:00:57]} Re8 {[%emt 0:01:46]} 30. e5 {[%emt 0:00:28]} Kg7 {[%emt 0:00:24]} 31. Bc6 {[%emt 0:00:48]} Rc8 {[%emt 0:00:47]} 32. Bf3 {[%emt 0:01:00]} Re8 {[%emt 0:00:16] Weighted Error Value: White=0.17 (very precise) /Black=0.15 (very precise)} (32... Rc7 $14) 1/2-1/2

[Event "58th Akiba Rubinstein B 2022"]
[Site "Polanica-Zdroj"]
[Date "2022.08.13"]
[Round "1.10"]
[White "Kowalczyk, Wojciech"]
[Black "Mencfel, Artur"]
[Result "1-0"]
[ECO "B24"]
[WhiteElo "1835"]
[BlackElo "1668"]
[Annotator "NA RC COMBH"]
[PlyCount "147"]
[EventDate "2022.08.13"]
[EventCountry "POL"]
[SourceTitle "playchess.com"]
[Source "ChessBase"]
[SourceQuality "1"]
[TimeControl "40/5400+30:1800+30"]

1. e4 {[%emt 0:02:07]} c5 {[%emt 0:01:51]} 2. Nc3 {[%emt 0:02:53]} Nc6 {[%emt 0:00:05]} 3. Bb5 {[%emt 0:00:58]} Nd4 {[%emt 0:00:28]} 4. Nf3 {[%emt 0:00:23]} Nxb5 {[%emt 0:00:30]} 5. Nxb5 {[%emt 0:00:10]} d5 {[%emt 0:00:03]} 6. exd5 {[%emt 0:03:15]} a6 {[%emt 0:00:06]} 7. Nc3 {[%emt 0:01:07]} Nf6 {[%emt 0:00:04]} 8. d4 {[%emt 0:04:43]} Nxd5 {[%emt 0:00:26]} 9. dxc5 {[%emt 0:01:13]} Nxc3 {[%emt 0:00:07]} 10. Qxd8+ {[%emt 0:00:13]} Kxd8 {[%emt 0:00:04]} 11. bxc3 {[%emt 0:00:08]} f6 {[%emt 0:00:04]} 12. Rb1 {[%emt 0:04:06]} e5 {[%emt 0:00:15]} 13. Be3 {[%emt 0:01:46]} Kc7 {[%emt 0:00:21]} 14. O-O {[%emt 0:01:47]} Be6 {[%emt 0:00:03]} 15. Rb4 {[%emt 0:09:09]} a5 {[%emt 0:01:57]} 16. Rb2 {[%emt 0:03:21]} Be7 {[%emt 0:00:14]} 17. Nd2 {[%emt 0:15:52]} f5 {[%emt 0:00:20]} 18. f3 {[%emt 0:01:42]} Rhd8 {[%emt 0:00:21]} 19. Rfb1 {[%emt 0:14:10]} Rab8 {[%emt 0:04:58]} 20. Nb3 {[%emt 0:07:57]} f4 {[%emt 0:16:03]} 21. Bf2 {[%emt 0:04:24]} a4 {[%emt 0:01:29]} 22. Na5 {[%emt 0:01:33]} Bd5 {[%emt 0:09:49]} 23. c6 {[%emt 0:03:09]} bxc6 {[%emt 0:00:22]} 24. Rb7+ {[%emt 0:15:07]} Rxb7 {[%emt 0:00:15]} 25. Rxb7+ {[%emt 0:00:22]} Kd6 {[%emt 0:00:35]} 26. c4 {[%emt 0:00:56]} Bg8 {[%emt 0:02:40]} 27. Rxe7 {[%emt 0:00:40]} Kxe7 {[%emt 0:00:03]} 28. Bh4+ {[%emt 0:00:38]} Kd7 {[%emt 0:00:59]} 29. Bxd8 {[%emt 0:00:15]} Kxd8 {[%emt 0:00:05]} 30. Nxc6+ {[%emt 0:00:09]} Kc7 {[%emt 0:00:05]} 31. Nxe5 {[%emt 0:00:41]} Kd6 {[%emt 0:00:09]} 32. Nd3 {[%emt 0:00:47]} a3 {[%emt 0:01:23]} 33. Kf2 {[%emt 0:00:40]} Bxc4 {[%emt 0:00:10]} 34. Nc1 {[%emt 0:00:23]} Kd5 {[%emt 0:00:25]} 35. Ke1 {[%emt 0:00:25]} Kd4 {[%emt 0:00:10]} 36. Kd2 {[%emt 0:00:24]} Bf1 {[%emt 0:01:39]} 37. Ne2+ {[%emt 0:00:40]} Ke5 {[%emt 0:01:07]} 38. g3 {[%emt 0:00:20]} g5 {[%emt 0:00:07]} 39. gxf4+ {[%emt 0:00:40]} gxf4 {[%emt 0:00:10]} 40. c3 {[%emt 0:00:00]} h5 {[%emt 0:00:00]} 41. Nd4 {[%emt 0:08:24]} Bc4 {[%emt 0:01:00]} 42. Nc2 {[%emt 0:00:20]} Bxa2 {[%emt 0:00:11]} 43. Nxa3 {[%emt 0:00:12]} Bd5 {[%emt 0:00:08]} 44. Ke2 {[%emt 0:00:49]} Bb3 {[%emt 0:01:21]} 45. h4 {[%emt 0:04:53]} Kd5 {[%emt 0:00:11]} 46. Kd2 {[%emt 0:00:55]} Ke5 {[%emt 0:00:17]} 47. Kd3 {[%emt 0:08:19]} Bd5 {[%emt 0:03:41]} 48. Nc4+ {[%emt 0:00:18]} Ke6 {[%emt 0:03:59]} 49. Nd2 {[%emt 0:00:24]} Ke5 {[%emt 0:00:48]} 50. Kc2 {[%emt 0:08:00]} Bb7 {[%emt 0:00:19]} 51. Kb3 {[%emt 0:00:18]} Kd5 {[%emt 0:01:47]} 52. Kb4 {[%emt 0:00:15]} Ba6 {[%emt 0:01:00]} 53. Ka5 {[%emt 0:01:29]} Be2 {[%emt 0:00:40]} 54. Kb6 {[%emt 0:01:56]} Bd1 {[%emt 0:02:53]} 55. Kb5 {[%emt 0:01:19]} Be2+ {[%emt 0:00:13]} 56. Kb4 {[%emt 0:00:28]} Ba6 {[%emt 0:00:21]} 57. Ne4 {[%emt 0:00:31]} Be2 {[%emt 0:00:38]} 58. Ng5 {[%emt 0:00:08]} Bf1 {[%emt 0:02:50]} 59. Nh7 {[%emt 0:01:01]} Be2 {[%emt 0:00:16]} 60. Ng5 {[%emt 0:00:31]} Bf1 {[%emt 0:00:02]} 61. Kb3 {[%emt 0:00:37]} Bd3 {[%emt 0:00:27]} 62. Nh3 {[%emt 0:00:27]} Ke5 {[%emt 0:01:31]} 63. Kb4 {[%emt 0:00:28]} Be2 {[%emt 0:00:25]} 64. Ng1 {[%emt 0:00:06]} Ba6 {[%emt 0:05:09]} 65. Kc5 {[%emt 0:00:52]} Bb7 {[%emt 0:00:23]} 66. c4 {[%emt 0:00:38]} Ba8 {[%emt 0:00:12]} 67. Kb6 {[%emt 0:00:30]} Kd6 {[%emt 0:00:30]} 68. c5+ {[%emt 0:00:19]} Kd7 {[%emt 0:00:13]} 69. Ne2 {[%emt 0:00:35]} Bxf3 {[%emt 0:00:14]} 70. Nxf4 {[%emt 0:00:07]} Ke7 {[%emt 0:07:18]} 71. c6 {[%emt 0:00:51]} Bxc6 {[%emt 0:00:06]} 72. Kxc6 {[%emt 0:00:20]} Kf6 {[%emt 0:00:01]} 73. Nxh5+ {[%emt 0:00:39]} Kf5 {[%emt 0:00:11]} 74. Ng3+ {[%emt 0:00:05]} 1-0

[Event "58th Akiba Rubinstein B 2022"]
[Site "Polanica-Zdroj"]
[Date "2022.08.13"]
[Round "1.11"]
[White "Rzenca, Jerzy"]
[Black "Rylski, Tadeusz"]
[Result "1-0"]
[ECO "A20"]
[WhiteElo "1668"]
[BlackElo "1794"]
[Annotator "NA RC COMBH"]
[PlyCount "87"]
[EventDate "2022.08.13"]
[EventCountry "POL"]
[SourceTitle "playchess.com"]
[Source "ChessBase"]
[SourceQuality "1"]
[TimeControl "40/5400+30:1800+30"]

1. c4 {[%emt 0:00:06]} e5 {[%emt 0:00:47]} 2. g3 {[%emt 0:00:06]} Nf6 {[%emt 0:00:35]} 3. Bg2 {[%emt 0:00:06]} d5 {[%emt 0:03:18]} 4. cxd5 {[%emt 0:00:30]} Nxd5 {[%emt 0:01:00]} 5. Nf3 {[%emt 0:00:29]} Nc6 {[%emt 0:02:05]} 6. Nc3 {[%emt 0:03:30]} Nb6 {[%emt 0:00:34]} 7. d3 {[%emt 0:01:37]} Be7 {[%emt 0:01:01]} 8. O-O {[%emt 0:00:22]} O-O {[%emt 0:01:02]} 9. a3 {[%emt 0:01:37]} Be6 {[%emt 0:13:36]} 10. b4 {[%emt 0:03:26]} Nd5 {[%emt 0:03:34]} 11. Ne4 {[%emt 0:04:37]} Kh8 {[%emt 0:09:17]} 12. Bb2 {[%emt 0:21:27]} f6 {[%emt 0:10:48]} 13. Rc1 {[%emt 0:10:41]} Qd7 {[%emt 0:04:01]} 14. Nc5 {[%emt 0:03:50]} Bxc5 {[%emt 0:01:19]} 15. Rxc5 {[%emt 0:00:03]} Rad8 {[%emt 0:01:10]} 16. Nd2 {[%emt 0:05:37]} b6 {[%emt 0:10:42]} 17. Rc2 {[%emt 0:02:28]} Nd4 {[%emt 0:01:12]} 18. Bxd4 {[%emt 0:01:39]} exd4 {[%emt 0:00:14]} 19. Qc1 {[%emt 0:04:30]} Nc3 {[%emt 0:02:59]} 20. Ne4 {[%emt 0:00:54]} Bb3 {[%emt 0:07:09]} 21. Rb2 {[%emt 0:05:20]} Nxe4 {[%emt 0:02:08]} 22. Bxe4 {[%emt 0:06:35]} Ba4 {[%emt 0:02:16]} 23. Qf4 {[%emt 0:04:37]} g5 {[%emt 0:05:17]} 24. Qf5 {[%emt 0:03:05]} Qxf5 {[%emt 0:00:35]} 25. Bxf5 {[%emt 0:00:01]} Rde8 {[%emt 0:03:30]} 26. Rc1 {[%emt 0:01:09]} Re5 {[%emt 0:01:15]} 27. g4 {[%emt 0:01:44]} c6 {[%emt 0:02:15]} 28. Be4 {[%emt 0:03:35]} h5 {[%emt 0:03:36]} 29. h3 {[%emt 0:00:21]} hxg4 {[%emt 0:00:26]} 30. hxg4 {[%emt 0:00:07]} Rd8 {[%emt 0:02:59]} 31. Kg2 {[%emt 0:00:28]} Kg7 {[%emt 0:00:09]} 32. Rbb1 {[%emt 0:01:23]} Rd6 {[%emt 0:01:01]} 33. Rh1 {[%emt 0:00:51]} Rxe4 {[%emt 0:03:50]} 34. dxe4 {[%emt 0:00:01]} Bc2 {[%emt 0:00:00]} 35. Rbc1 {[%emt 0:00:21]} Bxe4+ {[%emt 0:00:02]} 36. f3 {[%emt 0:00:01]} Bg6 {[%emt 0:01:50]} 37. Rhd1 {[%emt 0:00:59]} Bf7 {[%emt 0:00:01]} 38. Rd3 {[%emt 0:05:07]} Rd5 {[%emt 0:01:08]} 39. Rxc6 {[%emt 0:00:31]} Bg6 {[%emt 0:00:45]} 40. Rc7+ {[%emt 0:00:00]} Kf8 {[%emt 0:00:00]} 41. e4 {[%emt 0:04:05]} Rd8 {[%emt 0:01:17]} 42. Rc4 {[%emt 0:02:03]} Ke7 {[%emt 0:00:42]} 43. Rdxd4 {[%emt 0:00:22]} Rxd4 {[%emt 0:00:12]} 44. Rxd4 {[%emt 0:00:02]} 1-0

[Event "58th Akiba Rubinstein B 2022"]
[Site "Polanica-Zdroj"]
[Date "2022.08.13"]
[Round "1.12"]
[White "Graff, Slawomir"]
[Black "Blasiak, Miroslaw"]
[Result "1-0"]
[ECO "D35"]
[WhiteElo "1782"]
[BlackElo "1622"]
[Annotator "NA RC COMBH"]
[PlyCount "63"]
[EventDate "2022.08.13"]
[EventCountry "POL"]
[SourceTitle "playchess.com"]
[Source "ChessBase"]
[SourceQuality "1"]
[TimeControl "40/5400+30:1800+30"]

1. d4 {[%emt 0:04:46]} d5 {[%emt 0:00:18]} 2. c4 {[%emt 0:00:08]} e6 {[%emt 0:00:15]} 3. cxd5 {[%emt 0:00:07]} exd5 {[%emt 0:00:10]} 4. Nc3 {[%emt 0:00:06]} Nf6 {[%emt 0:00:25]} 5. Bg5 {[%emt 0:00:08]} Be7 {[%emt 0:00:27]} 6. e3 {[%emt 0:00:55]} O-O {[%emt 0:01:21]} 7. Bd3 {[%emt 0:00:12]} c6 {[%emt 0:01:09]} 8. Nge2 {[%emt 0:00:26]} Nbd7 {[%emt 0:01:34]} 9. O-O {[%emt 0:00:30]} Re8 {[%emt 0:00:44]} 10. Qc2 {[%emt 0:02:52]} Nf8 {[%emt 0:00:46]} 11. Rab1 {[%emt 0:01:23]} Ne4 {[%emt 0:13:50]} 12. Bxe7 {[%emt 0:02:25]} Qxe7 {[%emt 0:00:17]} 13. Bxe4 {[%emt 0:01:10]} dxe4 {[%emt 0:00:19]} 14. b4 {[%emt 0:00:48]} a6 {[%emt 0:18:36]} 15. a4 {[%emt 0:03:57]} Ng6 {[%emt 0:23:06]} 16. b5 {[%emt 0:04:45]} axb5 {[%emt 0:12:41]} 17. axb5 {[%emt 0:00:38]} f5 {[%emt 0:06:48]} 18. Na4 {[%emt 0:13:58]} Bd7 {[%emt 0:07:53]} 19. Nb6 {[%emt 0:08:56]} Rad8 {[%emt 0:00:44]} 20. Nxd7 {[%emt 0:04:25]} Qxd7 {[%emt 0:00:16]} 21. bxc6 {[%emt 0:01:24]} bxc6 {[%emt 0:01:10]} 22. Rfc1 {[%emt 0:02:32]} Rc8 {[%emt 0:01:25]} 23. Rb6 {[%emt 0:06:14]} Ne7 {[%emt 0:01:44]} 24. Rb4 {[%emt 0:10:36]} Red8 {[%emt 0:03:35]} 25. h4 {[%emt 0:02:25]} g6 {[%emt 0:01:21]} 26. Rc4 {[%emt 0:02:20]} Kg7 {[%emt 0:01:50]} 27. Nf4 {[%emt 0:03:03]} Kg8 {[%emt 0:00:34]} 28. Rc5 {[%emt 0:00:59]} Qd6 {[%emt 0:00:38]} 29. Qc4+ {[%emt 0:01:53]} Kh8 {[%emt 0:00:22]} 30. Ne6 {[%emt 0:02:56]} Re8 {[%emt 0:00:34]} 31. d5 {[%emt 0:01:26]} Rg8 {[%emt 0:00:31]} 32. Qd4+ {[%emt 0:00:22]} 1-0

[Event "58th Akiba Rubinstein B 2022"]
[Site "Polanica-Zdroj"]
[Date "2022.08.13"]
[Round "1.13"]
[White "Uliasz, Katarzyna"]
[Black "Sypien, Natan"]
[Result "0-1"]
[ECO "A06"]
[WhiteElo "1566"]
[BlackElo "1780"]
[Annotator "NA RC COMBH"]
[PlyCount "110"]
[EventDate "2022.08.13"]
[EventCountry "POL"]
[SourceTitle "playchess.com"]
[Source "ChessBase"]
[SourceQuality "1"]
[TimeControl "40/5400+30:1800+30"]

1. Nf3 {[%emt 0:00:03]} d5 {[%emt 0:00:03]} 2. g3 {[%emt 0:00:06]} Nf6 {[%emt 0:00:12]} 3. Bg2 {[%emt 0:00:05]} c6 {[%emt 0:00:14]} 4. O-O {[%emt 0:00:11]} Bf5 {[%emt 0:01:11]} 5. d3 {[%emt 0:00:14]} e6 {[%emt 0:00:55]} 6. Nc3 {[%emt 0:05:40]} h6 {[%emt 0:02:14]} 7. Nd2 {[%emt 0:01:48]} Bg4 {[%emt 0:07:22]} 8. Qe1 {[%emt 0:03:49]} Nbd7 {[%emt 0:05:28]} 9. e4 {[%emt 0:02:31]} dxe4 {[%emt 0:00:35]} 10. dxe4 {[%emt 0:04:44]} e5 {[%emt 0:00:42]} 11. Nc4 {[%emt 0:04:41]} Bc5 {[%emt 0:12:49]} 12. Be3 {[%emt 0:02:52]} Qe7 {[%emt 0:05:54]} 13. f3 {[%emt 0:09:00]} Be6 {[%emt 0:02:10]} 14. Bxc5 {[%emt 0:05:39]} Qxc5+ {[%emt 0:00:48]} 15. Ne3 {[%emt 0:00:04]} b5 {[%emt 0:07:28]} 16. Kh1 {[%emt 0:01:19]} Nb6 {[%emt 0:02:13]} 17. b3 {[%emt 0:04:14]} b4 {[%emt 0:02:03]} 18. Ncd1 {[%emt 0:01:12]} O-O {[%emt 0:04:06]} 19. Nf2 {[%emt 0:02:50]} a5 {[%emt 0:05:14]} 20. Nd3 Qb5 21. c4 {[%emt 0:04:30]} bxc3 {[%emt 0:00:51]} 22. Qxc3 {[%emt 0:09:13]} Nfd7 {[%emt 0:16:40]} 23. Rfc1 {[%emt 0:05:05]} a4 {[%emt 0:04:36]} 24. Bf1 {[%emt 0:00:30]} axb3 25. axb3 Qxb3 {[%emt 0:04:08]} 26. Rxa8 {[%emt 0:03:54]} Rxa8 27. Qxb3 {[%emt 0:02:12]} Bxb3 {[%emt 0:00:05]} 28. Rxc6 Rc8 {[%emt 0:07:14]} 29. Rxc8+ {[%emt 0:02:35]} Nxc8 30. Nb4 Kf8 {[%emt 0:04:20]} 31. Bc4 {[%emt 0:07:36]} Bxc4 {[%emt 0:00:38]} 32. Nxc4 {[%emt 0:00:02]} f6 {[%emt 0:00:43]} 33. Nd5 {[%emt 0:01:23]} Ne7 {[%emt 0:01:24]} 34. Nxe7 {[%emt 0:01:09]} Kxe7 {[%emt 0:00:02]} 35. Ne3 {[%emt 0:00:07]} g6 {[%emt 0:01:47]} 36. Kg2 Ke6 {[%emt 0:01:21]} 37. g4 {[%emt 0:01:14]} Nc5 {[%emt 0:00:11]} 38. Nc4 {[%emt 0:04:08]} Nd3 {[%emt 0:00:18]} 39. Ne3 {[%emt 0:01:03]} Nf4+ {[%emt 0:00:10]} 40. Kf2 {[%emt 0:00:00]} Kd6 {[%emt 0:00:00]} 41. Ng2 {[%emt 0:04:12]} Nxg2 42. Kxg2 Kc5 {[%emt 0:02:43]} 43. Kf2 {[%emt 0:00:32]} Kd4 {[%emt 0:06:53]} 44. Ke2 {[%emt 0:00:05]} Kc4 {[%emt 0:07:06]} 45. Ke3 {[%emt 0:01:53]} Kc3 {[%emt 0:00:06]} 46. f4 {[%emt 0:00:06]} g5 {[%emt 0:03:18]} 47. fxe5 {[%emt 0:02:49]} fxe5 {[%emt 0:00:01]} 48. Ke2 {[%emt 0:00:26]} Kd4 {[%emt 0:00:08]} 49. Kf3 {[%emt 0:00:04]} Kd3 {[%emt 0:00:03]} 50. h3 {[%emt 0:00:21]} Kd4 {[%emt 0:00:04]} 51. Kg3 {[%emt 0:00:26]} Kxe4 {[%emt 0:00:06]} 52. h4 {[%emt 0:00:04]} Kd3 {[%emt 0:00:09]} 53. hxg5 {[%emt 0:00:10]} hxg5 {[%emt 0:00:02]} 54. Kf2 {[%emt 0:00:16]} e4 {[%emt 0:00:02]} 55. Ke1 {[%emt 0:00:16]} Ke3 {[%emt 0:00:01]} 0-1